bitfinex/quotes_ETHUSD_20251122
["timestamp","ask_amount","ask_price","bid_price","bid_amount"]
[1763780917241,0.002,2761.7,2761.1,4.11133201]
[1763780917448,0.002,2761.7,2761.2,0.94320877]
[1763780917620,0.4915,2761.7,2761.3,0.50545408]
[1763780918013,0.4533,2761.4,2760.6,0.5916148]
[1763780918216,0.2786,2761.3,2760.8,0.90699264]
[1763780918512,0.2786,2761.3,2760.8,0.03622138]
[1763780918712,0.7681,2761.3,2760.6,0.405504]
[1763780918930,0.4895,2761.2,2760.6,1.31249664]
[1763780919251,0.4895,2761.2,2760.7,0.03622269]
[1763780919448,0.4895,2761.2,2760.6,1.31249664]
[1763780919648,0.4895,2761.2,2760.7,0.51502065]
[1763780920028,0.4895,2761.2,2760.5,0.405504]
[1763780920029,0.6374,2760.8,2760.5,0.405504]
[1763780920228,0.4516,2760.6,2760.5,0.405504]
[1763780920432,0.4516,2760.6,2759.9,3.72848718]
[1763780920642,0.2849,2760.5,2760.2,0.4895]
[1763780920818,0.4895,2760.7,2760.3,0.90699264]
[1763780921150,0.1841,2760.8,2760.3,1.41449062]
[1763780921354,0.6736,2760.8,2760.3,1.41449062]
[1763780922156,0.4533,2760.4,2760.0,0.001]
[1763780922325,0.4895,2760.7,2760.1,0.05]
[1763780922523,0.4895,2760.7,2760.2,0.03622925]
[1763780923765,0.4895,2760.7,2760.1,0.05]
[1763780923962,0.4895,2760.7,2760.2,0.37294872]
[1763780924566,0.4533,2760.3,2760.2,0.37294872]
[1763780924931,0.4895,2760.7,2760.2,0.37294872]
[1763780925967,0.4895,2760.7,2760.0,0.001]
[1763780925968,0.4533,2760.3,2760.0,0.001]
[1763780926168,0.4516,2760.1,2760.0,0.001]
[1763780926364,0.1841,2760.8,2760.0,0.001]
[1763780926365,1.27110059,2760.6,2760.0,0.001]
[1763780926667,0.4895,2760.7,2760.0,0.001]
[1763780926835,0.78160452,2760.6,2760.0,0.001]
[1763780927031,0.4895,2760.7,2760.3,0.001]
[1763780927240,0.4895,2760.6,2760.3,0.001]
[1763780927430,0.4533,2760.4,2760.3,0.001]
[1763780927880,0.9428,2760.4,2760.3,0.001]
[1763780932278,0.4533,2760.4,2760.3,0.001]
[1763780932478,0.4895,2760.7,2760.3,0.001]
[1763780932678,0.4895,2760.7,2760.4,0.36794872]
[1763780933196,0.4533,2760.5,2760.3,0.001]
[1763780933483,0.2832,2760.4,2760.3,0.001]
[1763780933843,0.7727,2760.4,2760.3,0.001]
[1763780938591,0.2832,2760.4,2760.3,0.001]
[1763780938893,0.7727,2760.4,2760.3,0.001]
[1763780939192,0.2832,2760.4,2760.3,0.001]
[1763780940095,0.1841,2760.8,2760.3,0.4593]
[1763780940259,0.6736,2760.8,2760.3,0.49552794]
[1763780940457,0.1841,2760.8,2760.4,3.67848718]
[1763780940651,0.1841,2761.0,2760.4,3.67848718]
[1763780940856,0.1841,2761.0,2760.5,0.03622532]
[1763780941052,0.4895,2760.9,2760.3,0.42340151]
[1763780941269,0.4533,2760.4,2760.3,0.001]
[1763780941970,0.4895,2760.6,2760.3,0.001]
[1763780942165,0.4533,2760.4,2760.3,0.001]
[1763780942890,0.9428,2760.4,2760.3,0.001]
[1763780947288,0.4533,2760.4,2760.3,0.001]
[1763780947797,0.9409,2760.4,2760.3,0.001]
[1763780948693,0.4533,2760.4,2760.3,0.001]
[1763780948997,0.9409,2760.4,2760.3,0.001]
[1763780950695,0.3346,2760.4,2760.3,0.001]
[1763780952498,0.3346,2760.9,2760.3,0.001]
[1763780952697,0.0033,2760.4,2760.3,0.001]
[1763780955470,0.3346,2760.4,2760.3,0.001]
[1763780955672,0.0033,2760.4,2760.3,0.001]
[1763780956295,0.3313,2760.7,2760.3,0.001]
[1763780956482,1.32845441,2761.0,2760.3,0.4567]
[1763780956483,0.4596,2761.0,2760.3,0.4567]
[1763780956682,0.56857018,2760.4,2760.3,0.001]
[1763780956890,0.0033,2760.4,2760.3,0.001]
[1763780957190,0.90316384,2760.4,2760.3,0.001]
[1763780957497,0.57186384,2760.4,2760.3,0.001]
[1763780957906,0.56856384,2760.4,2760.3,0.9154]
[1763780958088,0.56856384,2760.4,2760.3,0.4567]
[1763780958282,0.56856384,2760.4,2760.3,0.001]
[1763780958483,0.57186384,2760.4,2760.3,0.001]
[1763780958886,0.56856384,2760.4,2760.3,0.001]
[1763780959175,0.57186384,2760.4,2760.3,0.001]
[1763780960912,0.90316384,2760.4,2760.3,0.001]
[1763780961307,0.57186384,2760.4,2760.3,0.001]
[1763780961501,0.90316384,2760.4,2760.3,0.001]
[1763780962917,0.94844713,2760.4,2760.3,0.001]
[1763780963414,1.16275485,2760.4,2760.0,0.001]
[1763780963592,0.0033,2760.1,2760.0,0.001]
[1763780963977,0.3347,2760.1,2760.0,0.001]
[1763780967782,0.0033,2760.1,2760.0,0.001]
[1763780968182,0.0066,2760.1,2760.0,0.001]
[1763780968488,0.3314,2760.4,2760.0,0.001]
[1763780968721,1.24159264,2760.6,2760.0,0.001]
[1763780969079,0.3346,2760.1,2760.0,0.001]
[1763780970106,0.3379,2760.1,2760.0,0.001]
[1763780970504,0.38318821,2760.1,2760.0,0.001]
[1763780971799,5.37417203,2760.1,2760.0,0.001]
[1763780972023,5.32888382,2760.1,2760.0,0.001]
[1763780972832,1.24159264,2760.1,2760.0,0.001]
[1763780973029,0.4042045,2760.7,2760.0,0.001]
[1763780973030,0.3346,2760.7,2760.0,0.001]
[1763780973327,0.78208113,2760.9,2760.1,0.1859]
[1763780973529,0.0033,2760.1,2760.0,0.001]
[1763780974315,0.0066,2760.1,2760.0,0.001]
[1763780974497,0.3347,2760.1,2760.0,0.001]
[1763780974720,0.0066,2760.1,2760.0,0.001]
[1763780975339,0.90699264,2760.8,2760.0,0.4567]
[1763780975529,0.3346,2760.7,2760.0,0.4567]
[1763780976718,0.37987837,2760.7,2760.0,0.4567]
[1763780976910,0.94849101,2760.7,2760.0,0.001]
[1763780977242,0.0033,2760.1,2760.0,0.001]
[1763780977617,1.23829264,2760.5,2760.0,0.001]
[1763780977819,0.3346,2760.4,2760.0,0.001]
[1763780978023,0.3366,2760.4,2760.0,0.001]
[1763780978382,0.0033,2760.1,2760.0,0.001]
[1763780978907,0.3346,2760.1,2760.0,0.001]
[1763780980012,0.37988821,2760.1,2760.0,0.001]
[1763780980251,0.94858525,2760.1,2760.0,0.001]
[1763780980811,5.50731924,2760.1,2760.0,0.001]
[1763780981726,5.55260745,2760.1,2760.0,0.001]
[1763780982529,1.47568968,2760.1,2760.0,0.001]
[1763780982936,1.48228968,2760.1,2760.0,0.001]
[1763780983367,1.81038968,2760.1,2760.0,0.001]
[1763780983669,1.47568968,2760.1,2760.0,0.001]
[1763780983969,1.47898968,2760.1,2760.0,0.001]
[1763780985346,1.47568968,2760.1,2760.0,0.001]
[1763780985546,1.48228968,2760.1,2760.0,0.001]
[1763780987893,1.47568968,2760.1,2760.0,0.001]
[1763780988603,0.002,2760.4,2760.0,0.9606]
[1763780988746,0.002,2760.4,2760.2,0.4767]
[1763780989779,0.002,2760.4,2760.0,0.001]
[1763780989780,0.0033,2760.3,2760.0,0.001]
[1763780989967,0.0033,2760.1,2760.0,0.001]
[1763780990170,0.91029264,2760.1,2760.0,0.001]
[1763780990372,1.24159264,2760.1,2760.0,0.001]
[1763780991081,2.02462572,2760.1,2760.0,0.001]
[1763780991979,1.69332572,2760.1,2760.0,0.001]
[1763780992190,2.26206916,2760.1,2760.0,0.001]
[1763780993145,2.59336916,2760.1,2760.0,0.001]
[1763780994212,1.47903608,2760.1,2760.0,0.001]
[1763780994926,0.91029264,2760.1,2760.0,0.001]
[1763780995458,3.69902956,2760.4,2760.0,0.4777]
[1763780995665,1.68989372,2760.3,2760.0,0.4777]
[1763780995878,0.90699264,2760.3,2760.0,0.4777]
[1763780996074,0.002,2760.4,2760.2,0.4767]
[1763780996281,0.002,2760.4,2760.3,0.9596]
[1763780999407,3.69702956,2760.9,2760.4,0.4767]
[1763780999704,3.74230465,2760.9,2760.4,0.4767]
[1763781000883,3.69702956,2760.9,2760.4,0.4767]
[1763781001108,3.69702956,2760.5,2760.0,0.001]
[1763781001306,0.11805999,2761.0,2760.0,0.001]
[1763781001307,3.69702956,2760.2,2760.0,0.001]
[1763781001510,0.04528821,2760.1,2760.0,0.001]
[1763781001708,0.95228085,2760.1,2760.0,0.001]
[1763781002098,1.73860722,2760.1,2760.0,0.001]
[1763781002908,2.14411122,2760.1,2760.0,0.001]
[1763781003233,2.09882301,2760.1,2760.0,0.001]
[1763781006511,8.41013022,2760.1,2760.0,0.001]
[1763781006710,9.67565715,2760.1,2760.0,0.001]
[1763781007026,0.405504,2760.0,2759.4,0.001]
[1763781007239,4.15402956,2759.8,2759.4,0.001]
[1763781007424,4.93645593,2759.8,2759.4,0.001]
[1763781007629,5.50523647,2759.8,2759.4,0.001]
[1763781008027,5.0610222,2759.8,2759.4,0.001]
[1763781009342,0.90699264,2759.8,2759.7,0.4815]
[1763781009969,0.90699264,2759.8,2759.7,0.9438]
[1763781010264,0.90699264,2760.1,2759.7,0.9438]
[1763781010423,0.56870886,2759.8,2759.7,0.001]
[1763781010614,0.90699264,2760.1,2759.7,0.4815]
[1763781010817,0.90699264,2760.1,2760.0,0.4805]
[1763781011248,1.4756895,2760.1,2760.0,0.4805]
[1763781011841,0.56869686,2760.1,2760.0,0.4805]
[1763781013647,0.57069686,2760.1,2760.0,0.4805]
[1763781018667,0.57069686,2760.1,2760.0,0.9428]
[1763781018873,0.002,2760.1,2760.0,0.9428]
[1763781020082,0.90899264,2760.1,2760.0,0.4805]
[1763781020382,0.90899264,2760.1,2759.7,0.4633]
[1763781020589,0.95428085,2760.1,2759.7,0.4633]
[1763781020880,4.20192956,2759.8,2759.7,0.001]
[1763781021073,5.1089222,2759.8,2759.7,0.001]
[1763781022326,5.67768579,2759.8,2759.7,0.001]
[1763781022448,6.86489709,2759.8,2759.7,0.001]
[1763781022647,6.91019022,2759.8,2759.7,0.001]
[1763781023386,14.95226122,2759.8,2759.7,0.001]
[1763781023605,14.15241967,2759.8,2759.7,0.001]
[1763781023807,9.93584367,2759.8,2759.7,0.001]
[1763781024307,9.20555709,2759.8,2759.7,0.001]
[1763781024511,6.86489709,2759.8,2759.7,0.001]
[1763781026017,10.22177609,2759.8,2759.7,0.001]
[1763781026174,9.59182909,2759.8,2759.7,0.001]
[1763781026609,6.86489709,2759.8,2759.7,0.001]
[1763781026811,9.17406309,2759.8,2759.7,0.001]
[1763781026978,9.81475209,2759.8,2759.7,0.001]
[1763781027892,9.81475209,2759.8,2759.4,0.001]
[1763781027893,7.65779,2759.6,2759.4,0.001]
[1763781028108,1.2387073,2759.5,2759.4,0.001]
[1763781028410,6.56045951,2759.5,2759.4,0.001]
[1763781029679,17.21600275,2759.5,2759.4,0.001]
[1763781029883,1.31249664,2759.2,2759.1,0.001]
[1763781030084,9.1255604,2759.2,2759.1,0.001]
[1763781030415,0.405504,2759.0,2758.9,0.001]
[1763781030637,5.0095262,2759.0,2758.9,0.001]
[1763781030801,6.24812742,2759.0,2758.9,0.001]
[1763781032035,5.38562342,2759.0,2758.9,0.001]
[1763781032351,4.6040222,2759.0,2758.9,0.001]
[1763781032933,3.69702956,2759.0,2758.9,0.9438]
[1763781033323,4.6040222,2759.0,2758.9,0.4815]
[1763781033515,3.69702956,2759.0,2758.9,0.001]
[1763781033716,4.6040222,2759.0,2758.9,0.001]
[1763781034021,0.4009045,2759.6,2758.9,0.9438]
[1763781034218,1.95139414,2760.1,2759.2,0.1956]
[1763781034219,3.69702956,2759.5,2759.2,0.1956]
[1763781034643,3.69702956,2759.5,2759.4,0.4805]
[1763781034810,4.6040222,2759.5,2759.4,0.4805]
[1763781035011,4.6040222,2759.5,2759.4,0.9428]
[1763781035726,4.6040222,2759.5,2759.2,0.1956]
[1763781035920,3.69702956,2759.3,2759.2,0.1956]
[1763781036245,4.6040222,2759.3,2759.2,0.1956]
[1763781036643,4.6040222,2759.3,2759.2,1.1635]
[1763781037020,0.90699264,2759.3,2759.2,1.1635]
[1763781037221,0.04528985,2760.0,2759.2,1.1635]
[1763781037548,3.69702956,2759.9,2759.3,0.4825]
[1763781037743,0.95228577,2759.8,2759.3,0.4825]
[1763781037944,0.90699264,2759.6,2759.3,0.4825]
[1763781038326,0.90699264,2759.6,2759.5,0.4854]
[1763781039745,1.47582096,2759.6,2759.5,0.4854]
[1763781039942,1.99310601,2759.6,2759.3,0.4825]
[1763781040143,3.69702956,2759.4,2759.2,0.1956]
[1763781040343,0.04530134,2759.3,2759.2,0.1956]
[1763781040568,1.47582096,2759.6,2759.2,0.1956]
[1763781040755,3.69702956,2759.5,2759.2,0.681]
[1763781041067,0.90699264,2759.5,2759.2,1.1635]
[1763781041770,0.90699264,2759.5,2759.2,0.681]
[1763781041972,0.90699264,2759.5,2759.3,0.4825]
[1763781043148,0.90699264,2759.5,2759.4,0.4854]
[1763781043355,1.47582096,2759.6,2759.4,0.4854]
[1763781043563,0.0479,2760.0,2759.4,0.4854]
[1763781043564,3.68484305,2760.0,2759.5,0.4854]
[1763781043774,0.002,2760.1,2759.9,0.4854]
[1763781043945,0.90699264,2759.9,2759.4,0.4825]
[1763781044361,0.90699264,2759.9,2759.8,0.4854]
[1763781044560,0.90699264,2759.9,2759.8,0.9679]
[1763781046769,0.867604,2760.6,2759.8,0.9679]
[1763781046770,0.97900153,2761.0,2760.6,0.4854]
[1763781046969,0.002,2761.6,2761.2,0.0385]
[1763781047274,0.80554884,2762.0,2761.5,0.0385]
[1763781047275,0.002,2762.0,2761.5,0.0385]
[1763781047465,0.002,2762.0,2761.8,0.94149264]
[1763781047674,0.002,2762.0,2761.8,1.40412621]
[1763781047856,0.002,2762.0,2761.8,0.49713357]
[1763781048042,0.002,2762.0,2761.8,0.0345]
[1763781048373,0.002,2762.0,2761.8,0.069]
[1763781048541,0.002,2762.0,2761.8,0.0345]
[1763781048747,1.1267,2761.9,2760.9,0.0345]
[1763781049088,0.002,2761.9,2761.0,0.0345]
[1763781049455,0.002,2761.9,2761.0,0.17968397]
[1763781049976,0.002,2761.9,2761.1,0.0345]
[1763781052739,0.002,2761.9,2761.8,0.0345]
[1763781053178,0.002,2761.9,2761.8,0.069]
[1763781053376,0.002,2761.9,2761.0,0.14518397]
[1763781053567,0.184,2761.9,2761.1,0.0345]
[1763781053790,0.002,2761.9,2761.1,0.0345]
[1763781056397,0.184,2761.9,2761.1,0.0345]
[1763781056709,0.002,2761.9,2761.1,0.0345]
[1763781057900,0.56839758,2761.8,2761.2,0.0345]
[1763781058426,0.002,2761.9,2761.7,0.0345]
[1763781060011,0.184,2761.9,2760.9,3.81]
[1763781060308,0.6461,2761.9,2761.0,1.4131919]
[1763781060792,0.184,2761.9,2761.0,1.4131919]
[1763781060997,0.184,2761.9,2761.1,0.0345]
[1763781061320,0.184,2761.9,2761.1,0.94349264]
[1763781061500,0.56838966,2761.8,2761.1,0.94349264]
[1763781061696,0.04526197,2761.7,2761.1,0.52251919]
[1763781061903,0.04526197,2761.7,2760.9,3.81]
[1763781062125,0.90699264,2761.6,2760.8,0.56838966]
[1763781062423,0.04526525,2761.5,2760.7,0.0345]
[1763781064925,0.04526525,2761.5,2760.3,0.2284]
[1763781064926,4.14694305,2761.4,2760.3,0.2284]
[1763781065227,4.14694305,2761.4,2760.4,1.08897072]
[1763781065433,0.4961,2761.3,2760.4,1.08897072]
[1763781065844,0.90899264,2762.0,2761.3,0.035]
[1763781066023,0.90899264,2762.0,2761.4,0.035]
[1763781068934,0.04526197,2761.7,2761.0,0.035]
[1763781069137,1.06448966,2761.8,2761.0,0.035]
[1763781069632,1.44835461,2761.7,2760.5,0.035]
[1763781069835,3.68484305,2761.5,2760.4,0.035]
[1763781070001,0.04526689,2761.4,2760.4,0.035]
[1763781070637,0.4961,2761.6,2760.4,0.035]
[1763781071010,0.56838966,2761.8,2761.5,0.035]
[1763781071306,1.06448966,2761.8,2760.9,0.035]
[1763781071526,0.04526197,2761.7,2760.9,0.035]
[1763781071720,0.04526197,2761.7,2760.9,0.46268357]
[1763781071721,4.18094305,2761.7,2760.9,0.46268357]
[1763781071935,0.4961,2761.7,2760.7,0.035]
[1763781072303,1.09769264,2761.9,2760.3,2.20211024]
[1763781072304,0.4961,2761.6,2760.3,2.2008823]
[1763781072520,0.4961,2761.6,2760.4,0.035]
[1763781072722,4.18094305,2761.6,2760.4,0.035]
[1763781072921,0.95225789,2761.5,2760.4,0.035]
[1763781073253,1.44835789,2761.5,2760.4,0.035]
[1763781073455,0.4961,2761.4,2760.4,0.035]
[1763781073651,0.04526853,2761.3,2760.4,0.035]
[1763781074157,0.4961,2761.4,2760.4,0.035]
[1763781074560,0.04526853,2761.3,2760.4,0.035]
[1763781074922,0.54136853,2761.3,2760.4,0.035]
[1763781076339,0.54136853,2761.3,2760.4,3.845]
[1763781076655,0.54136853,2761.3,2760.5,0.40394]
[1763781079724,0.90699264,2761.2,2760.3,0.1944]
[1763781079925,0.6753,2760.4,2760.3,0.001]
[1763781080134,4.36014305,2760.4,2760.3,0.001]
[1763781080329,5.76323569,2760.4,2760.3,0.001]
[1763781080633,2.07839264,2760.4,2760.3,0.001]
[1763781081364,2.2862319,2760.4,2760.3,0.001]
[1763781082235,2.07839264,2760.4,2760.3,0.001]
[1763781082939,0.1887,2760.8,2760.3,0.036]
[1763781083686,0.6848,2760.8,2760.3,0.036]
[1763781085271,0.4866,2760.4,2760.3,0.001]
[1763781085837,0.54137837,2760.7,2760.3,0.001]
[1763781086373,0.4961,2760.7,2760.3,0.001]
[1763781086538,0.54137837,2760.7,2760.3,0.001]
[1763781087570,0.4866,2760.4,2760.3,0.001]
[1763781087946,0.9827,2760.4,2760.3,0.001]
[1763781089251,0.4866,2760.4,2760.3,0.001]
[1763781089452,0.90699264,2760.8,2760.3,0.036]
[1763781089675,1.40309264,2760.8,2760.3,0.001]
[1763781090858,0.4961,2761.2,2760.7,0.035]
[1763781091581,0.4961,2761.6,2760.7,0.07]
[1763781091886,0.4961,2761.5,2760.7,0.035]
[1763781093262,0.002,2761.7,2760.8,0.035]
[1763781094950,0.4981,2761.7,2760.5,3.81]
[1763781095157,0.4981,2761.7,2760.7,0.035]
[1763781096703,0.90699264,2761.5,2760.7,0.035]
[1763781097074,0.90699264,2761.5,2761.4,0.035]
[1763781097483,1.36369264,2761.5,2760.7,0.035]
[1763781098474,0.002,2761.7,2760.7,0.035]
[1763781099008,0.4821,2761.7,2760.7,0.035]
[1763781099300,0.4821,2761.7,2760.8,0.41008431]
[1763781099705,0.4821,2761.7,2760.8,0.44508431]
[1763781099908,0.4821,2761.7,2760.9,0.035]
[1763781101010,0.4821,2761.7,2761.6,0.035]
[1763781101011,0.002,2761.7,2761.6,0.035]
[1763781101590,0.002,2761.7,2761.6,0.07]
[1763781101802,0.002,2761.7,2761.6,0.4454843]
[1763781102124,0.002,2761.7,2761.6,0.59062613]
[1763781102470,0.002,2761.7,2761.6,0.55562613]
[1763781102672,0.002,2761.7,2761.6,0.035]
[1763781103097,0.002,2761.7,2761.6,0.07]
[1763781103417,0.002,2761.7,2761.6,0.035]
[1763781105611,0.002,2761.7,2761.3,3.69049969]
[1763781105989,0.002,2761.7,2761.4,0.14515447]
[1763781106290,0.002,2761.7,2761.1,0.035]
[1763781106490,0.002,2761.7,2761.6,0.035]
[1763781108702,0.002,2761.7,2761.6,0.07]
[1763781108906,0.002,2761.7,2761.6,0.44604997]
[1763781110042,0.002,2761.7,2761.6,0.37604997]
[1763781110197,0.002,2761.7,2761.3,3.69049969]
[1763781110937,0.002,2761.7,2760.7,0.94199264]
[1763781110938,0.4821,2761.7,2760.7,0.94199264]
[1763781111138,0.4821,2761.7,2760.9,3.69049969]
[1763781112513,0.4821,2761.7,2760.7,3.69049969]
[1763781112713,0.4821,2761.7,2760.8,0.36904997]
[1763781114000,0.4821,2761.7,2760.9,3.69049969]
[1763781116038,0.4821,2761.7,2760.8,0.36904997]
[1763781119165,0.4821,2761.7,2760.8,0.37004997]
[1763781120303,0.002,2761.7,2760.8,4.18004997]
[1763781120504,0.002,2761.7,2761.6,0.035]
[1763781121645,0.002,2761.7,2761.6,3.72549969]
[1763781122426,0.002,2761.7,2761.6,3.76049969]
[1763781122649,0.002,2761.7,2761.6,3.72549969]
[1763781123538,0.002,2761.7,2761.6,0.035]
[1763781123853,0.002,2761.7,2761.6,0.40754997]
[1763781125885,0.002,2761.7,2761.6,0.37254997]
[1763781126063,0.9185,2761.7,2760.9,3.69049969]
[1763781126368,0.4638,2761.5,2760.9,3.69049969]
[1763781127130,0.4527,2761.4,2760.8,0.90799264]
[1763781127567,0.4527,2761.4,2760.8,0.001]
[1763781128045,0.002,2761.7,2760.9,3.69049969]
[1763781128376,0.002,2761.7,2761.3,0.035]
[1763781128588,0.4547,2761.7,2761.1,3.69049969]
[1763781128738,0.4547,2761.7,2761.0,0.36914997]
[1763781129293,0.002,2761.7,2761.6,0.035]
[1763781129587,0.002,2761.7,2761.6,4.09804966]
[1763781129738,0.002,2761.7,2761.6,4.13304966]
[1763781131473,0.4658,2761.7,2761.6,0.37254997]
[1763781131669,0.4658,2761.7,2761.4,0.90699264]
[1763781131974,0.002,2761.7,2761.6,0.035]
[1763781133279,0.002,2761.7,2761.6,0.07]
[1763781133479,0.002,2761.7,2761.6,0.53674923]
[1763781133846,0.002,2761.7,2761.6,0.50174923]
[1763781134047,0.9185,2761.7,2760.7,0.035]
[1763781134262,0.002,2761.7,2761.6,0.035]
[1763781134461,0.002,2761.7,2761.4,3.69049969]
[1763781134664,0.002,2761.7,2761.5,0.0362122]
[1763781134855,0.002,2761.7,2761.6,0.37267119]
[1763781135394,0.002,2761.7,2760.8,0.001]
[1763781135395,0.9185,2761.7,2760.8,0.001]
[1763781135686,0.4547,2761.7,2761.5,0.001]
[1763781135856,0.4527,2761.6,2761.5,0.001]
[1763781136059,0.9165,2761.6,2761.5,0.001]
[1763781139594,1.09904926,2761.6,2761.5,0.001]
[1763781140680,1.31249664,2761.5,2761.3,0.001]
[1763781140855,0.4638,2761.4,2761.3,0.001]
[1763781141061,0.9165,2761.4,2761.3,0.001]
[1763781146372,0.18254926,2761.6,2761.3,0.001]
[1763781146373,0.002,2761.7,2761.3,0.036]
[1763781146565,0.4547,2761.7,2761.3,0.036]
[1763781146765,0.002,2761.7,2761.4,0.37264997]
[1763781147161,0.002,2761.7,2761.6,0.035]
[1763781148010,0.002,2761.7,2761.4,0.37264997]
[1763781148388,0.57039052,2761.7,2761.4,0.37264997]
[1763781149026,0.4527,2761.6,2761.4,0.37264997]
[1763781149324,0.4638,2761.5,2761.3,0.001]
[1763781149499,0.4638,2761.4,2761.3,0.001]
[1763781150816,0.9165,2761.4,2761.3,0.001]
[1763781150995,0.57039052,2761.7,2761.3,0.001]
[1763781151195,0.4527,2761.6,2761.3,0.001]
[1763781151919,0.57039052,2761.7,2761.3,0.001]
[1763781152105,0.57039052,2761.7,2761.5,0.035]
[1763781152308,0.57039052,2761.7,2761.3,0.001]
[1763781152508,1.02309052,2761.7,2761.3,0.001]
[1763781152823,0.57039052,2761.7,2761.3,0.001]
[1763781153720,0.002,2761.6,2761.3,0.94299264]
[1763781153895,0.002,2761.6,2761.4,0.46334923]
[1763781154523,0.002,2761.6,2761.5,0.035]
[1763781154986,0.002,2761.6,2761.5,0.94199264]
[1763781156504,0.002,2761.6,2761.5,0.035]
[1763781156825,0.002,2761.6,2761.5,3.72549969]
[1763781157123,0.002,2761.6,2761.5,5.56179797]
[1763781158115,0.002,2761.6,2761.5,5.52679797]
[1763781160796,0.002,2761.6,2761.5,1.83629828]
[1763781162427,0.4862,2761.6,2761.5,5.61129828]
[1763781162628,0.002,2761.6,2761.5,5.61129828]
[1763781163120,0.002,2761.6,2761.5,5.64629828]
[1763781163522,0.002,2761.6,2761.5,9.33679797]
[1763781164804,0.002,2761.6,2761.5,5.64629828]
[1763781166232,0.002,2761.6,2761.5,5.61129828]
[1763781167728,0.002,2761.6,2761.5,6.18163776]
[1763781168036,0.4862,2761.6,2761.5,6.18163776]
[1763781168402,0.4862,2761.6,2761.5,2.37163776]
[1763781168606,0.002,2761.6,2761.5,2.37163776]
[1763781169509,0.002,2761.6,2761.5,2.40663776]
[1763781170846,0.002,2761.6,2761.5,2.37163776]
[1763781171817,0.002,2761.6,2761.5,2.37263776]
[1763781172820,0.4862,2761.6,2761.5,2.37263776]
[1763781173630,0.4862,2761.6,2761.5,1.47833212]
[1763781173867,0.9755,2761.6,2761.5,1.47833212]
[1763781175557,0.9755,2761.6,2761.5,0.57133948]
[1763781175857,0.9755,2761.6,2761.5,0.001]
[1763781181437,1.02076361,2761.6,2761.5,0.001]
[1763781182434,0.9755,2761.6,2761.5,0.001]
[1763781183390,0.002,2761.6,2761.5,0.001]
[1763781183607,0.002,2761.6,2761.5,0.036]
[1763781185584,0.002,2761.6,2761.5,4.65478438]
[1763781185886,0.002,2761.6,2761.5,5.1239843]
[1763781186101,0.002,2761.6,2761.5,5.0889843]
[1763781186376,0.002,2761.6,2761.5,5.1239843]
[1763781186874,0.002,2761.6,2761.5,5.26912718]
[1763781187663,0.002,2761.6,2761.5,5.23412718]
[1763781188179,0.002,2761.6,2761.5,5.26912718]
[1763781188900,0.002,2761.6,2761.5,5.23412718]
[1763781190301,0.002,2761.6,2761.5,5.26912718]
[1763781192394,0.002,2761.6,2761.5,5.67463118]
[1763781197939,0.002,2761.6,2761.5,5.23412718]
[1763781198139,0.002,2761.6,2761.5,5.19912718]
[1763781198529,0.4536,2761.6,2761.5,4.29213454]
[1763781198841,0.4536,2761.6,2761.5,4.72992726]
[1763781199207,0.002,2761.6,2761.5,4.72992726]
[1763781199620,0.4536,2761.6,2761.5,4.72992726]
[1763781200827,0.002,2761.6,2761.5,4.72992726]
[1763781201029,0.9435,2761.6,2761.5,4.72992726]
[1763781201916,0.9435,2761.6,2761.5,4.58478438]
[1763781202317,0.002,2761.6,2761.5,4.58478438]
[1763781202516,0.002,2761.6,2761.5,5.17271282]
[1763781202940,0.002,2761.6,2761.5,5.85951282]
[1763781203450,0.9435,2761.6,2761.5,4.58478438]
[1763781203745,0.9435,2761.6,2761.5,4.78168438]
[1763781204871,0.4536,2761.6,2761.5,4.78168438]
[1763781205230,0.002,2761.6,2761.5,4.81668438]
[1763781205436,0.002,2761.6,2761.5,5.3020743]
[1763781205862,0.4536,2761.6,2761.5,5.2670743]
[1763781206043,0.9435,2761.6,2761.5,5.2670743]
[1763781206634,0.9435,2761.6,2761.5,0.90799264]
[1763781207162,0.4536,2761.6,2761.5,4.58478438]
[1763781207467,0.002,2761.6,2761.5,4.58478438]
[1763781207852,0.9435,2761.6,2761.5,4.58478438]
[1763781208237,0.4536,2761.6,2761.5,4.58478438]
[1763781209066,0.4536,2761.6,2761.5,5.03838438]
[1763781209585,0.9435,2761.6,2761.5,4.58478438]
[1763781211283,0.9435,2761.6,2761.5,0.90799264]
[1763781212672,0.9435,2761.6,2761.5,0.001]
[1763781214680,0.9435,2761.6,2761.3,0.001]
[1763781214858,0.4516,2761.3,2760.9,0.001]
[1763781215051,0.4516,2761.1,2760.9,0.001]
[1763781215453,0.926,2761.1,2760.9,0.001]
[1763781218066,1.83299264,2761.1,2760.9,0.001]
[1763781218663,1.83299264,2761.1,2760.7,0.001]
[1763781218664,0.874404,2761.0,2760.7,0.001]
[1763781218847,0.6681,2760.9,2760.7,0.001]
[1763781219064,1.38799966,2760.9,2760.7,0.001]
[1763781222004,1.1425,2760.9,2760.7,0.001]
[1763781222204,0.6681,2760.9,2760.7,0.001]
[1763781222406,0.4744,2761.1,2760.8,3.67779174]
[1763781222847,0.4764,2761.6,2761.0,0.035]
[1763781222972,0.4764,2761.6,2761.1,3.67679174]